Workbook

Sheet prob-1
Q1: Problema 1. | V1: Cuadro resumen
A2: Problema 1. | G2: Punto 2 | H2: Punto 1 | I2: Problema 1. | J2: Punto 2 | K2: Punto 1 | N2: Punto 2 | O2: Punto 1 | Q2: Método de la curva tipo | V2: u < | W2: 0.01 | X2: r (m)= | Y2: 25 | Z2: 75
A3: Q (m3/d)= | B3: 540 | F3: t0(min) | G3: 0.27 | I3: t0(min) | J3: 3.5 | M3: (t/r2)0 (min/m2)= | N3: =6*10^(-4) -> 0.0006 | W3: Punto A | X3: Punto B | Y3: Jacob-t-r25 | Z3: Jacob-t-r75 | AA3: Jacob-t/r2
D4: R2= | E4: 0.99 | F4: t(min) | G4: 100 | H4: 10 | I4: t(min) | J4: 100 | K4: 10 | M4: t/r2(min/m2)= | N4: 0.1 | O4: 0.01 | Q4: Datos de la prueba | S4: Curva tipo de Theis
D5: Ln= | E5: 0.1823 | F5: x (m) | G5: 1.09 | H5: 0.67 | I5: x (m) | J5: 0.57 | K5: 0.19 | M5: x (m) | N5: 0.96 | O5: 0.52 | Q5: x (m) | R5: t/r2(min/m2) | S5: u | T5: W(u) | U5: 1/u | V5: (1/u)= | W5: 10 | X5: 100
D6: Intersección= | E6: 0.249 | F6: D log(t2/t1)= | G6: 1 | I6: D log(t2/t1)= | J6: 1 | M6: Inc. log(t2/t1)= | N6: 1 | Q6: =+C11 -> 0.18 | R6: =+D11 -> 0.0016 | S6: 0.0001 | T6: 8.6332 | U6: =1/S6 -> 10000 | V6: W(u)= | W6: 1 | X6: 3.9
A7: r (m)= | C7: 25 | F7: D x= | G7: =+G5-H5 -> 0.42 | I7: D x= | J7: =+J5-K5 -> 0.38 | K7: r (m)= | L7: 75 | M7: D x= | N7: =+N5-O5 -> 0.44 | Q7: 0.25 | R7: 0.00224 | S7: 0.00011 | T7: 8.5379 | U7: =1/S7 -> 9090.909091 | V7: x (m)= | W7: 0.23 | X7: 0.9
B8: t (min) | C8: x (m) | D8: t/r2(min/m2) | E8: Apr. Lineal | J8: t (min) | K8: x (m) | L8: t/r2(min/m2) | Q8: 0.32 | R8: 0.0032 | S8: 0.00012 | T8: 8.4509 | U8: 8333.333333 | V8: t/r2(min/m2)= | W8: =8.2*10^(-3) -> 0.0082 | X8: 0.084 | AA8: =+N3 -> 0.0006
B9: 0.2 | E9: =+$E$6+$E$5*LN(B9) -> -0.04440053144 | F9: T | Q9: 0.4 | R9: 0.00448 | S9: 0.00013 | T9: 8.3709 | U9: 7692.307692 | V9: T (m2/d)= | W9: =$B$3*W6/(4*PI()*W7) -> 186.8340636 | X9: =$B$3*X6/(4*PI()*X7) -> 186.2112834 | Y9: =2.303*$B$3/(4*PI()*G7) -> 235.6288932 | Z9: =2.303*$B$3/(4*PI()*J7) -> 260.4319346 | AA9: =2.303*$B$3/(4*PI()*N7) -> 224.918489
B10: 0.4 | E10: =+$E$6+$E$5*LN(B10) -> 0.08196019958 | Q10: 0.46 | R10: 0.00608 | S10: 0.00014 | T10: 8.2968 | U10: 7142.857143 | V10: S= | W10: =1/W5*4*W9/(24*60)*W8 -> 0.0004255664783 | X10: =1/X5*4*X9/(24*60)*X8 -> 0.0004344929946 | Y10: =2.25*Y9/(24*60)*G3/Y2^2 -> 0.0001590495029 | Z10: =2.25*Z9/(24*60)*J3/Z2^2 -> 0.0002531977142 | AA10: =2.25*AA9/(24*60)*AA8 -> 0.0002108610834
B11: 1 | C11: 0.18 | D11: =+B11/C$7^2 -> 0.0016 | E11: =+$E$6+$E$5*LN(B11) -> 0.249 | J11: 3 | K11: 0.022 | L11: =+J11/L$7^2 -> 0.0005333333333 | Q11: 0.5 | R11: 0.00752 | S11: 0.00015 | T11: 8.2278 | U11: 6666.666667 | V11: u<0,01 | W11: u t (d)= | Y11: =+Y2^2*Y10/(4*Y9) -> 0.00010546875 | Z11: =+Z2^2*Z10/(4*Z9) -> 0.0013671875
B12: 1.4 | C12: 0.25 | D12: 0.00224 | E12: =+$E$6+$E$5*LN(B12) -> 0.3103388887 | J12: 4 | K12: 0.03 | L12: 0.0007111111111 | Q12: 0.55 | R12: 0.00896 | S12: 0.00016 | T12: 8.1634 | U12: 6250 | W12: t (min)> | Y12: =+Y11/$W$2*24*60 -> 15.1875 | Z12: =+Z11/$W$2*24*60 -> 196.875
B13: 2 | C13: 0.32 | D13: 0.0032 | E13: 0.375360731 | J13: 4.3 | K13: 0.033 | L13: 0.0007644444444 | Q13: 0.6 | R13: 0.01072 | S13: 0.00017 | T13: 8.1027 | U13: 5882.352941 | W13: t/r2(min/m2)> | AA13: =AA10/(W2*4*AA9)*24*60 -> 0.03375
B14: 2.8 | C14: 0.4 | D14: 0.00448 | E14: 0.4366996198 | J14: 5.3 | K14: 0.062 | L14: 0.0009422222222 | Q14: 0.65 | R14: 0.0128 | S14: 0.00018 | T14: 8.0455 | U14: 5555.555556
B15: 3.8 | C15: 0.46 | D15: 0.00608 | E15: 0.4923706945 | J15: 6 | K15: 0.076 | L15: 0.001066666667 | Q15: 0.7 | R15: 0.01712 | S15: 0.00019 | T15: 7.9915 | U15: 5263.157895
B16: 4.7 | C16: 0.5 | D16: 0.00752 | E16: 0.5311206453 | J16: 7 | K16: 0.105 | L16: 0.001244444444 | Q16: 0.76 | R16: 0.02176 | S16: 0.0002 | T16: 7.9402 | U16: 5000
B17: 5.6 | C17: 0.55 | D17: 0.00896 | E17: 0.5630603508 | J17: 8 | K17: 0.126 | L17: 0.001422222222 | Q17: 0.8 | R17: 0.0264 | S17: 0.0003 | T17: 7.5348 | U17: 3333.333333
B18: 6.7 | C18: 0.6 | D18: 0.01072 | E18: 0.5957542021 | J18: 8.7 | K18: 0.146 | L18: 0.001546666667 | Q18: 0.82 | R18: 0.028 | S18: 0.0004 | T18: 7.2472 | U18: 2500
B19: 8 | C19: 0.65 | D19: 0.0128 | E19: 0.628082193 | J19: 11 | K19: 0.186 | L19: 0.001955555556 | Q19: 0.84 | R19: 0.0336 | S19: 0.0005 | T19: 7.0242 | U19: 2000
B20: 10.7 | C20: 0.7 | D20: 0.01712 | E20: 0.6810954341 | J20: 12 | K20: 0.214 | L20: 0.002133333333 | Q20: 0.9 | R20: 0.04208 | S20: 0.0006 | T20: 6.842 | U20: 1666.666667
B21: 13.6 | C21: 0.76 | D21: 0.02176 | E21: 0.7248157232 | J21: 15 | K21: 0.25 | L21: 0.002666666667 | Q21: 0.96 | R21: 0.0576 | S21: 0.0007 | T21: 6.6879 | U21: 1428.571429
B22: 16.5 | C22: 0.8 | D22: 0.0264 | E22: 0.7600525974 | J22: 18 | K22: 0.288 | L22: 0.0032 | Q22: 1.04 | R22: 0.0864 | S22: 0.0008 | T22: 6.5545 | U22: 1250
B23: 17.5 | C23: 0.82 | D23: 0.028 | E23: =+$E$6+$E$5*LN(B23) -> 0.7707792206 | J23: 27 | K23: 0.35 | L23: 0.0048 | Q23: 1.05 | R23: 0.104 | S23: 0.0009 | T23: 6.4368 | U23: 1111.111111
B24: 21 | C24: 0.84 | D24: 0.0336 | E24: 0.8040164404 | J24: 31 | K24: 0.385 | L24: 0.005511111111 | Q24: 1.09 | R24: 0.128 | S24: 0.00099 | T24: 6.3416 | U24: 1010.10101
B25: 26.3 | C25: 0.9 | D25: 0.04208 | E25: 0.8450424176 | J25: 35 | K25: 0.427 | L25: 0.006222222222 | Q25: 1.11 | R25: 0.1552 | S25: 0.001 | T25: 6.3315 | U25: 1000
B26: 36 | C26: 0.96 | D26: 0.0576 | E26: 0.9022755025 | J26: 50 | K26: 0.487 | L26: 0.008888888889 | Q26: 1.15 | R26: 0.1904 | S26: 0.0011 | T26: 6.2363 | U26: 909.0909091
B27: 54 | C27: 1.04 | D27: 0.0864 | E27: 0.9761917917 | J27: 60 | K27: 0.51 | L27: 0.01066666667 | Q27: 1.2 | R27: 0.2592 | S27: 0.0012 | T27: 6.1494 | U27: 833.3333333
B28: 65 | C28: 1.05 | D28: 0.104 | E28: 1.009990799 | J28: 80 | K28: 0.566 | L28: 0.01422222222 | Q28: 1.22 | R28: 0.304 | S28: 0.0013 | T28: 6.0695 | U28: 769.2307692
B29: 80 | C29: 1.09 | D29: 0.128 | E29: 1.047843456 | J29: 106 | K29: 0.602 | L29: 0.01884444444 | Q29: 1.28 | R29: 0.448 | S29: 0.0014 | T29: 5.9955 | U29: 714.2857143
B30: 97 | C30: 1.11 | D30: 0.1552 | E30: 1.082969811 | J30: 120 | K30: 0.622 | L30: 0.02133333333 | Q30: 1.31 | R30: 0.5824 | S30: 0.0015 | T30: 5.9266 | U30: 666.6666667
B31: 119 | C31: 1.15 | D31: 0.1904 | E31: 1.120234213 | J31: 150 | K31: 0.654 | L31: 0.02666666667 | Q31: 1.35 | R31: 0.784 | S31: 0.0016 | T31: 5.8621 | U31: 625
B32: 162 | C32: 1.2 | D32: 0.2592 | E32: 1.176468812 | J32: 180 | K32: 0.69 | L32: 0.032 | Q32: 1.4 | R32: 0.976 | S32: 0.0017 | T32: 5.8016 | U32: 588.2352941
B33: 190 | C33: 1.22 | D33: 0.304 | E33: 1.205532488 | J33: 220 | K33: 0.71 | L33: 0.03911111111 | Q33: 1.42 | R33: 1.168 | S33: 0.0018 | T33: 5.7446 | U33: 555.5555556
B34: 280 | C34: 1.28 | D34: 0.448 | E34: 1.276222145 | J34: 245 | K34: 0.74 | L34: 0.04355555556 | Q34: 1.47 | R34: 1.52 | S34: 0.0019 | T34: 5.6906 | U34: 526.3157895
B35: 364 | C35: 1.31 | D35: 0.5824 | E35: =+$E$6+$E$5*LN(B35) -> 1.32405115 | J35: 300 | K35: 0.774 | L35: 0.05333333333 | Q35: 1.48 | R35: 1.952 | S35: 0.002 | T35: 5.6394 | U35: 500
B36: 490 | C36: 1.35 | D36: 0.784 | E36: 1.378240103 | J36: 360 | K36: 0.795 | L36: 0.064 | Q36: 1.5 | R36: 2.368 | S36: 0.003 | T36: 5.2349 | U36: 333.3333333
B37: 610 | C37: 1.4 | D37: 0.976 | E37: 1.418173568 | J37: 500 | K37: 0.83 | L37: 0.08888888889 | Q37: =+K11 -> 0.022 | R37: =+L11 -> 0.0005333333333 | S37: 0.004 | T37: 4.9482 | U37: 250
B38: 730 | C38: 1.42 | D38: 1.168 | E38: 1.450912019 | J38: 610 | K38: 0.86 | L38: 0.1084444444 | Q38: 0.03 | R38: 0.0007111111111 | S38: 0.005 | T38: 4.7261 | U38: 200
B39: 950 | C39: 1.47 | D39: 1.52 | E39: 1.49893302 | J39: 730 | K39: 0.89 | L39: 0.1297777778 | Q39: 0.033 | R39: 0.0007644444444 | S39: 0.006 | T39: 4.5448 | U39: 166.6666667
B40: 1220 | C40: 1.48 | D40: 1.952 | E40: 1.544534299 | J40: 850 | K40: 0.92 | L40: 0.1511111111 | Q40: 0.062 | R40: 0.0009422222222 | S40: 0.007 | T40: 4.3916 | U40: 142.8571429
B41: 1480 | C41: 1.5 | D41: 2.368 | E41: 1.57975306 | J41: 1100 | K41: 0.95 | L41: 0.1955555556 | Q41: 0.076 | R41: 0.001066666667 | S41: 0.008 | T41: 4.2591 | U41: 125
Q42: 0.105 | R42: 0.001244444444 | S42: 0.009 | T42: 4.1423 | U42: 111.1111111
Q43: 0.126 | R43: 0.001422222222 | S43: 0.0099 | T43: 4.0479 | U43: 101.010101
Q44: 0.146 | R44: 0.001546666667 | S44: 0.01 | T44: 4.0379 | U44: 100
Q45: 0.186 | R45: 0.001955555556 | S45: 0.011 | T45: 3.9436 | U45: 90.90909091
Q46: 0.214 | R46: 0.002133333333 | S46: 0.012 | T46: 3.8576 | U46: 83.33333333
Q47: 0.25 | R47: 0.002666666667 | S47: 0.013 | T47: 3.7785 | U47: 76.92307692
Q48: 0.288 | R48: 0.0032 | S48: 0.014 | T48: 3.7054 | U48: 71.42857143
Q49: 0.35 | R49: 0.0048 | S49: 0.015 | T49: 3.6374 | U49: 66.66666667
Q50: 0.385 | R50: 0.005511111111 | S50: 0.016 | T50: 3.5739 | U50: 62.5
Q51: 0.427 | R51: 0.006222222222 | S51: 0.017 | T51: 3.5143 | U51: 58.82352941
Q52: 0.487 | R52: 0.008888888889 | S52: 0.018 | T52: 3.4581 | U52: 55.55555556
Q53: 0.51 | R53: 0.01066666667 | S53: 0.019 | T53: 3.405 | U53: 52.63157895
Q54: 0.566 | R54: 0.01422222222 | S54: 0.02 | T54: 3.3547 | U54: 50
Q55: 0.602 | R55: 0.01884444444 | S55: 0.03 | T55: 2.9591 | U55: 33.33333333
Q56: 0.622 | R56: 0.02133333333 | S56: 0.04 | T56: 2.6813 | U56: 25
Q57: 0.654 | R57: 0.02666666667 | S57: 0.05 | T57: 2.4679 | U57: 20
Q58: 0.69 | R58: 0.032 | S58: 0.06 | T58: 2.2953 | U58: 16.66666667
Q59: 0.71 | R59: 0.03911111111 | S59: 0.07 | T59: 2.1508 | U59: 14.28571429
Q60: 0.74 | R60: 0.04355555556 | S60: 0.08 | T60: 2.0269 | U60: 12.5
Q61: 0.774 | R61: 0.05333333333 | S61: 0.09 | T61: 1.9187 | U61: 11.11111111
Q62: 0.795 | R62: 0.064 | S62: 0.099 | T62: 1.832 | U62: 10.1010101
Q63: 0.83 | R63: 0.08888888889 | S63: 0.1 | T63: 1.8229 | U63: 10
Q64: 0.86 | R64: 0.1084444444 | S64: 0.11 | T64: 1.7371 | U64: 9.090909091
Q65: 0.89 | R65: 0.1297777778 | S65: 0.12 | T65: 1.6595 | U65: 8.333333333
Q66: 0.92 | R66: 0.1511111111 | S66: 0.13 | T66: 1.5889 | U66: 7.692307692
Q67: 0.95 | R67: 0.1955555556 | S67: 0.14 | T67: 1.5241 | U67: 7.142857143
S68: 0.15 | T68: 1.4645 | U68: 6.666666667
S69: 0.16 | T69: 1.4092 | U69: 6.25
S70: 0.17 | T70: 1.3578 | U70: 5.882352941
S71: 0.18 | T71: 1.3089 | U71: =1/S71 -> 5.555555556
S72: 0.19 | T72: 1.2649 | U72: 5.263157895
S73: 0.2 | T73: 1.2227 | U73: 5
S74: 0.3 | T74: 0.9057 | U74: 3.333333333
S75: 0.4 | T75: 0.7024 | U75: 2.5
S76: 0.5 | T76: 0.5598 | U76: 2
S77: 0.6 | T77: 0.4554 | U77: 1.666666667
S78: 0.7 | T78: 0.3738 | U78: 1.428571429
S79: 0.8 | T79: 0.3106 | U79: 1.25
S80: 0.9 | T80: 0.2602 | U80: 1.111111111
S81: 0.99 | T81: 0.2231 | U81: 1.01010101
S82: 1 | T82: 0.2194 | U82: 1
S83: 1.1 | T83: 0.186 | U83: 0.9090909091
S84: 1.2 | T84: 0.1584 | U84: 0.8333333333
S85: 1.3 | T85: 0.1355 | U85: 0.7692307692
S86: 1.4 | T86: 0.1162 | U86: 0.7142857143
S87: 1.5 | T87: 0.1 | U87: 0.6666666667
S88: 1.6 | T88: 0.08631 | U88: 0.625
S89: 1.7 | T89: 0.07465 | U89: 0.5882352941
S90: 1.8 | T90: 0.06471 | U90: 0.5555555556
S91: 1.9 | T91: 0.0562 | U91: 0.5263157895
S92: 3 | T92: 0.01305 | U92: 0.3333333333
S93: 4 | T93: 0.003779 | U93: 0.25
S94: 5 | T94: 0.001148 | U94: 0.2
S95: 6 | T95: 0.0003601 | U95: 0.1666666667
S96: 7 | T96: 0.0001155 | U96: 0.1428571429
S97: 8 | T97: 3.767e-05 | U97: 0.125
S98: 9 | T98: 1.245e-05 | U98: 0.1111111111
S99: 9.9 | T99: 4.637e-06 | U99: 0.101010101
Q101: Cuadro resumen
Q102: u < | R102: 0.01 | S102: r (m)= | T102: 25 | U102: 75
R103: Punto A | S103: Punto B | T103: Jacob-t-r25 | U103: Jacob-t-r75 | V103: Jacob-t/r2
Q105: (1/u)= | R105: 10 | S105: 100
Q106: W(u)= | R106: 1 | S106: 3.9
Q107: x (m)= | R107: 0.23 | S107: 0.9
Q108: t/r2(min/m2)= | R108: 0.0082 | S108: 0.084 | V108: 0.0006
Q109: T (m2/d)= | R109: 186.8340636 | S109: 186.2112834 | T109: 235.6288932 | U109: 260.4319346 | V109: 224.918489
Q110: S= | R110: 0.0004255664783 | S110: 0.0004344929946 | T110: 0.0001590495029 | U110: 0.0002531977142 | V110: 0.0002108610834
Q111: u<0,01 | R111: u t (d)= | T111: 0.00010546875 | U111: 0.0013671875
R112: t (min)> | T112: 15.1875 | U112: 196.875
R113: t/r2(min/m2)> | V113: 0.03375

Sheet prob-2-3
A1: Problema 2. | J1: Problema 3.
A2: Q (m3/h)= | B2: 47 | G2: Punto 2 | H2: Punto 1 | M2: B (s/m^2)= | N2: 21 | O2: D xp/Q= | P2: 14.5
D3: R2= | E3: 0.99 | F3: t/t' | G3: 100 | H3: 10 | J3: T (m2/s)= | K3: 0.072 | M3: log (2,25 T t/r^2 S)= | N3: =4*PI()*K3*N2/2.303 -> 8.250261558 | O3: D Q(m3/s)= | P3: 0.04
D4: Ln= | E4: 0.4847 | F4: x (m) | G4: 2.03 | H4: 0.95 | J4: S= | K4: =4.8*10^(-3) -> 0.0048 | M4: rep (m)= | N4: =(2.25*K3*K5*3600/(K4*10^N3))^0.5 -> 0.02613108002 | O4: C(s2/m5)= | P4: =+P2/P3 -> 362.5
D5: Intersección= | E5: -0.1872 | F5: D log(t/t')= | G5: =LOG(G3/H3) -> 1 | J5: t (h)= | K5: 1 | M5: Dep (m)= | N5: =2*N4 -> 0.05226216003 | O5: =+O7*60 -> 1.44 | P5: =+P7*60 -> 3.54
A6: r (m)= | C6: 25 | F6: D x= | G6: =+G4-H4 -> 1.08 | L6: 75 | O6: =+O7*3600 -> 86.4 | P6: =+P7*3600 -> 212.4
A7: t (min) | B7: t' (min) | C7: x' (m) | D7: t/t' | E7: Apr. Lineal | F7: T(m2/s)= | G7: =2.303/(4*PI()*G6)*B2/3600*G5 -> 0.002215417978 | J7: Q (m3/s)= | K7: xp (m) | L7: xp/Q(s/m2) | M7: Q(m3/s) | N7: 0.012 | O7: 0.024 | P7: 0.059
A8: 0 | B8: - | C8: - | M8: t (d) | O8: Q/ xp
A9: 44 | B9: 0 | C9: 2.44 | D9: 100 | E9: =+$E$5+$E$4*LN(D9) -> 2.044925989 | M9: 1 | N9: =1/(2.303/(4*PI()*$K$3)*LOG(2.25*$K$3*$M9*24*3600/($K$4*$N$4^2))+$P$4*N$7) -> 0.03464624878 | O9: =1/(2.303/(4*PI()*$K$3)*LOG(2.25*$K$3*$M9*24*3600/($K$4*$N$4^2))+$P$4*O$7) -> 0.03010855314 | P9: =1/(2.303/(4*PI()*$K$3)*LOG(2.25*$K$3*$M9*24*3600/($K$4*$N$4^2))+$P$4*P$7) -> 0.02178618215
A10: 45 | B10: 1 | C10: 1.69 | D10: =+A10/B10 -> 45 | E10: =+$E$5+$E$4*LN(D10) -> 1.657889309 | J10: 0.081 | K10: 4 | L10: =+K10/J10 -> 49.38271605 | M10: 2 | N10: =1/(2.303/(4*PI()*$K$3)*LOG(2.25*$K$3*$M10*24*3600/($K$4*$N$4^2))+$P$4*N$7) -> 0.03375027583 | O10: =1/(2.303/(4*PI()*$K$3)*LOG(2.25*$K$3*$M10*24*3600/($K$4*$N$4^2))+$P$4*O$7) -> 0.02942960643 | P10: 0.02142847004
A11: 46 | B11: 2 | C11: 1.3 | D11: =+A11/B11 -> 23 | E11: =+$E$5+$E$4*LN(D11) -> 1.332574046 | J11: 0.059 | K11: 2.4 | L11: =+K11/J11 -> 40.6779661 | M11: 3 | N11: 0.03324732742 | O11: 0.02904645803 | P11: 0.0212246155
A12: 47 | B12: 3 | C12: 1.14 | D12: 15.66666667 | E12: 1.146469166 | J12: 0.024 | K12: 0.76 | L12: =+K12/J12 -> 31.66666667 | M12: 5 | N12: 0.03263463284 | O12: 0.02857772092 | P12: 0.02097324517
A13: 48 | B13: 4 | C13: 1.01 | D13: 12 | E13: 1.017234253 | J13: 0 | K13: 0.09 | L13: - | M13: 10 | N13: 0.03183848723 | O13: 0.0279653574 | P13: 0.02064152734
A14: 49 | B14: 5 | C14: 0.91 | D14: 9.8 | E14: 0.9190707423 | M14: 20 | N14: 0.03108026164 | O14: 0.02737868678 | P14: 0.02032013919
A15: 50 | B15: 6 | C15: 0.84 | D15: 8.333333333 | E15: 0.840491736 | M15: 30 | N15: 0.03065323947 | O15: 0.02704677892 | P15: 0.02013673674
A16: 51 | B16: 7 | C16: 0.78 | D16: 7.285714286 | E16: 0.7753732349 | M16: 50 | N16: 0.03013167474 | O16: 0.02663990783 | P16: 0.01991033682
A17: 52 | B17: 8 | C17: 0.73 | D17: 6.5 | E17: 0.7200625151 | M17: 100 | N17: 0.02945169662 | O17: 0.02610700128 | P17: 0.01961114962
A18: 54 | B18: 10 | C18: 0.63 | D18: 5.4 | E18: 0.6301975728 | M18: 200 | N18: 0.02880173119 | O18: 0.02559499719 | P18: 0.01932082091
A19: 56 | B19: 12 | C19: 0.56 | D19: 4.666666667 | E19: 0.5594537113 | M19: 300 | N19: 0.02843465524 | O19: 0.02530469814 | P19: 0.01915494025
A20: 58 | B20: 14 | C20: 0.51 | D20: 4.142857143 | E20: 0.5017456395 | M20: 400 | N20: 0.02817983431 | O20: 0.02510268942 | P20: 0.01903896301
A21: 61 | B21: 17 | C21: 0.43 | D21: 3.588235294 | E21: 0.4320820541 | M21: 500 | N21: 0.02798530337 | O21: 0.02494820674 | P21: 0.01894996671
A22: 64 | B22: 20 | C22: 0.38 | D22: 3.2 | E22: 0.3765791975 | M22: 700 | N22: 0.02769700121 | O22: 0.02471882843 | P22: 0.01881733369
A23: 67 | B23: 23 | C23: 0.33 | D23: 2.913043478 | E23: 0.3310404662 | M23: 1000 | N23: 0.02739780437 | O23: 0.02448023855 | P23: 0.01867874928
A24: 71 | B24: 26 | C24: 0.29 | D24: 2.730769231 | E24: 0.2997215444
A25: 75 | B25: 31 | C25: 0.24 | D25: 2.419354839 | E25: 0.2410328906
A26: 80 | B26: 36 | C26: 0.21 | D26: 2.222222222 | E26: 0.1998366804
A27: 88 | B27: 44 | C27: 0.15 | D27: 2 | E27: 0.1487684384
D28: 1.48 | E28: 0.002822799945

Sheet pROB-selecc-bomba
A1: Problema 1. | B1: Selección de bombas | E1: u(m/s)= | F1: 1.5 | G1: L (m)= | H1: 93 | I1: H (m)= | J1: =+J20 -> 84.79837925 | K1: t (h)= | L1: =30*24 -> 720
A2: Q(L/s)= | B2: 10 | C2: =+B2/1000*3600 -> 36 | D2: m3/h | E2: D (m)= | F2: =+SQRT(4*C2/3600*1/(F1*PI())) -> 0.09213177319 | G2: zD (m)= | H2: 80 | I2: Cogeríamos | J2: 6 | K2: que está más próximo
A3: T (m2/s)= | B3: =34/3600 -> 0.009444444444 | E3: Dc (m)= | F3: 0.09 | H3: Q/ xp | I3: Rdto = | J3: 0.73 | K3: Pabs (CV/fase)= | L3: 2.9 | M3: Pabs (kW)= | N3: =+L3*735*J2/1000 -> 12.789
A4: S= | B4: =6*10^(-4) -> 0.0006 | C4: rep (m)= | D4: 0.12 | E4: k (m)= | F4: =3*0.00001 -> 3e-05 | G4: t (1mes)= | H4: =+D15 -> 0.004711351639 | I4: Pabs (kW)= | J4: =9806*J1*G20/J3*1/1000 -> 11.39086174 | K4: CE (pta/(kW*h))= | L4: 10 | M4: P (kW)= | N4: =+N3*J3 -> 9.33597
C5: C(s2/m5)= | D5: 2200 | F5: Q(m3/h) | G5: Q(m3/s) | H5: xp(m) | I5: hfs (m) | J5: H (m) | K5: C (pta/m^3)= | L5: =9806/J3*J1*1/(3.6*10^6)*L4 -> 3.164128261
F6: =+G6*3600 -> 0 | G6: 0 | H6: =+G6/$H$4 -> 0 | I6: 0 | J6: =+$H$2+H6+I6 -> 80 | K6: V (m3/mes)= | L6: =+G20*L1*3600 -> 25920
C7: Q(m3/s) | D7: =36/3600 -> 0.01 | F7: =+G7*3600 -> 3.6 | G7: 0.001 | H7: =+G7/$H$4 -> 0.2122533142 | I7: =1.1*$H$1*IWC(G7,$F$3,$F$4,10^(-6)) -> 0.04127491435 | J7: =+$H$2+H7+I7 -> 80.25352823 | K7: C (pta/m^3)= | L7: =+N3*L1/L6*L4 -> 3.5525
A8: =300*0.001/60 -> 0.005 | C8: t (d) | D8: Q/ xp(m2/s) | F8: 7.2 | G8: 0.002 | H8: 0.4245066285 | I8: =1.1*$H$1*IWC(G8,$F$3,$F$4,10^(-6)) -> 0.1412723546 | J8: 80.56577898
C9: 1 | D9: =1/(2.303/(4*PI()*$B$3)*LOG(2.25*$B$3*$C9*24*3600/($B$4*$D$4^2))+$D$5*D$7) -> 0.005446914676 | F9: 10.8 | G9: 0.003 | H9: 0.6367599427 | I9: =1.1*$H$1*IWC(G9,$F$3,$F$4,10^(-6)) -> 0.292919709 | J9: 80.92967965
C10: 2 | D10: 0.005278950902 | F10: 14.4 | G10: 0.004 | H10: 0.849013257 | I10: =1.1*$H$1*IWC(G10,$F$3,$F$4,10^(-6)) -> 0.4936567226 | J10: 81.34266998
C11: 3 | D11: 0.005185415368 | F11: 18 | G11: 0.005 | H11: 1.061266571 | I11: 0.742072789 | J11: 81.80333936
C12: 5 | D12: 0.005072190008 | F12: 21.6 | G12: 0.006 | H12: 1.273519885 | I12: 1.037271979 | J12: 82.31079186
C13: 10 | D13: 0.00492623204 | F13: 24 | G13: =+F13/3600 -> 0.006666666667 | H13: 1.415022095 | I13: 1.25975271 | J13: =+$H$2+H13+I13 -> 82.6747748
C14: 20 | D14: 0.004788439317 | F14: 25.2 | G14: 0.007 | H14: 1.4857732 | I14: 1.378642356 | J14: 82.86441556
C15: 30 | D15: 0.004711351639 | F15: 27 | G15: =+F15/3600 -> 0.0075 | H15: 1.591899857 | I15: 1.566497029 | J15: 83.15839689
C16: 50 | D16: 0.004617695668 | F16: 28.8 | G16: 0.008 | H16: 1.698026514 | I16: 1.765737151 | J16: 83.46376366
C17: 100 | D17: 0.00449641023 | F17: 30 | G17: =30/3600 -> 0.008333333333 | H17: 1.768777619 | I17: 1.904869892 | J17: 83.67364751
C18: 200 | D18: 0.004381332943 | F18: 32.4 | G18: 0.009 | H18: 1.910279828 | I18: 2.198224057 | J18: 84.10850389
C19: 300 | D19: 0.004316707382 | F19: 33 | G19: =33/3600 -> 0.009166666667 | H19: 1.945655381 | I19: 2.274699401 | J19: 84.22035478
C20: 400 | D20: 0.004271999044 | F20: 36 | G20: 0.01 | H20: 2.122533142 | I20: 2.675846109 | J20: 84.79837925
F21: 39 | G21: =+F21/3600 -> 0.01083333333 | H21: 2.299410904 | I21: 3.108195257 | J21: 85.40760616
F22: 39.6 | G22: 0.011 | H22: 2.334786457 | I22: 3.198400679 | J22: 85.53318714
F23: 42 | G23: =+F23/3600 -> 0.01166666667 | H23: 2.476288666 | I23: 3.571651245 | J23: 86.04793991
F24: 43.2 | G24: 0.012 | H24: 2.547039771 | I24: 3.765718419 | J24: 86.31275819
F25: 45 | G25: =+F25/3600 -> 0.0125 | H25: 2.653166428 | I25: 4.066126619 | J25: 86.71929305

Sheet cURVATIPO
A1: 1 /u | B1: W(u) | D1: u | E1: W(u)
A2: =1/D2 -> 10000 | B2: 8.6332 | D2: 0.0001 | E2: 8.6332
A3: 9090.909091 | B3: 8.5379 | D3: 0.00011 | E3: 8.5379
A4: 8333.333333 | B4: 8.4509 | D4: 0.00012 | E4: 8.4509
A5: 7692.307692 | B5: 8.3709 | D5: 0.00013 | E5: 8.3709
A6: 7142.857143 | B6: 8.2968 | D6: 0.00014 | E6: 8.2968
A7: 6666.666667 | B7: 8.2278 | D7: 0.00015 | E7: 8.2278
A8: 6250 | B8: 8.1634 | D8: 0.00016 | E8: 8.1634
A9: 5882.352941 | B9: 8.1027 | D9: 0.00017 | E9: 8.1027
A10: 5555.555556 | B10: 8.0455 | D10: 0.00018 | E10: 8.0455
A11: 5263.157895 | B11: 7.9915 | D11: 0.00019 | E11: 7.9915
A12: 5000 | B12: 7.9402 | D12: 0.0002 | E12: 7.9402
A13: 3333.333333 | B13: 7.5348 | D13: 0.0003 | E13: 7.5348
A14: 2500 | B14: 7.2472 | D14: 0.0004 | E14: 7.2472
A15: 2000 | B15: 7.0242 | D15: 0.0005 | E15: 7.0242
A16: 1666.666667 | B16: 6.842 | D16: 0.0006 | E16: 6.842
A17: 1428.571429 | B17: 6.6879 | D17: 0.0007 | E17: 6.6879
A18: 1250 | B18: 6.5545 | D18: 0.0008 | E18: 6.5545
A19: 1111.111111 | B19: 6.4368 | D19: 0.0009 | E19: 6.4368
A20: 1010.10101 | B20: 6.3416 | D20: 0.00099 | E20: 6.3416
A21: 1000 | B21: 6.3315 | D21: 0.001 | E21: 6.3315
A22: 909.0909091 | B22: 6.2363 | D22: 0.0011 | E22: 6.2363
A23: 833.3333333 | B23: 6.1494 | D23: 0.0012 | E23: 6.1494
A24: 769.2307692 | B24: 6.0695 | D24: 0.0013 | E24: 6.0695
A25: 714.2857143 | B25: 5.9955 | D25: 0.0014 | E25: 5.9955
A26: 666.6666667 | B26: 5.9266 | D26: 0.0015 | E26: 5.9266
A27: 625 | B27: 5.8621 | D27: 0.0016 | E27: 5.8621
A28: 588.2352941 | B28: 5.8016 | D28: 0.0017 | E28: 5.8016
A29: 555.5555556 | B29: 5.7446 | D29: 0.0018 | E29: 5.7446
A30: 526.3157895 | B30: 5.6906 | D30: 0.0019 | E30: 5.6906
A31: 500 | B31: 5.6394 | D31: 0.002 | E31: 5.6394
A32: 333.3333333 | B32: 5.2349 | D32: 0.003 | E32: 5.2349
A33: 250 | B33: 4.9482 | D33: 0.004 | E33: 4.9482
A34: =1/D34 -> 200 | B34: 4.7261 | D34: 0.005 | E34: 4.7261
A35: 166.6666667 | B35: 4.5448 | D35: 0.006 | E35: 4.5448
A36: 142.8571429 | B36: 4.3916 | D36: 0.007 | E36: 4.3916
A37: 125 | B37: 4.2591 | D37: 0.008 | E37: 4.2591
A38: 111.1111111 | B38: 4.1423 | D38: 0.009 | E38: 4.1423
A39: 101.010101 | B39: 4.0479 | D39: 0.0099 | E39: 4.0479
A40: 100 | B40: 4.0379 | D40: 0.01 | E40: 4.0379
A41: 90.90909091 | B41: 3.9436 | D41: 0.011 | E41: 3.9436
A42: 83.33333333 | B42: 3.8576 | D42: 0.012 | E42: 3.8576
A43: 76.92307692 | B43: 3.7785 | D43: 0.013 | E43: 3.7785
A44: 71.42857143 | B44: 3.7054 | D44: 0.014 | E44: 3.7054
A45: 66.66666667 | B45: 3.6374 | D45: 0.015 | E45: 3.6374
A46: 62.5 | B46: 3.5739 | D46: 0.016 | E46: 3.5739
A47: 58.82352941 | B47: 3.5143 | D47: 0.017 | E47: 3.5143
A48: 55.55555556 | B48: 3.4581 | D48: 0.018 | E48: 3.4581
A49: 52.63157895 | B49: 3.405 | D49: 0.019 | E49: 3.405
A50: 50 | B50: 3.3547 | D50: 0.02 | E50: 3.3547
A51: 33.33333333 | B51: 2.9591 | D51: 0.03 | E51: 2.9591
A52: 25 | B52: 2.6813 | D52: 0.04 | E52: 2.6813
A53: 20 | B53: 2.4679 | D53: 0.05 | E53: 2.4679
A54: 16.66666667 | B54: 2.2953 | D54: 0.06 | E54: 2.2953
A55: 14.28571429 | B55: 2.1508 | D55: 0.07 | E55: 2.1508
A56: 12.5 | B56: 2.0269 | D56: 0.08 | E56: 2.0269
A57: 11.11111111 | B57: 1.9187 | D57: 0.09 | E57: 1.9187
A58: 10.1010101 | B58: 1.832 | D58: 0.099 | E58: 1.832
A59: 10 | B59: 1.8229 | D59: 0.1 | E59: 1.8229
A60: 9.090909091 | B60: 1.7371 | D60: 0.11 | E60: 1.7371
A61: 8.333333333 | B61: 1.6595 | D61: 0.12 | E61: 1.6595
A62: 7.692307692 | B62: 1.5889 | D62: 0.13 | E62: 1.5889
A63: 7.142857143 | B63: 1.5241 | D63: 0.14 | E63: 1.5241
A64: 6.666666667 | B64: 1.4645 | D64: 0.15 | E64: 1.4645
A65: 6.25 | B65: 1.4092 | D65: 0.16 | E65: 1.4092
A66: =1/D66 -> 5.882352941 | B66: 1.3578 | D66: 0.17 | E66: 1.3578
A67: 5.555555556 | B67: 1.3089 | D67: 0.18 | E67: 1.3089
A68: 5.263157895 | B68: 1.2649 | D68: 0.19 | E68: 1.2649
A69: 5 | B69: 1.2227 | D69: 0.2 | E69: 1.2227
A70: 3.333333333 | B70: 0.9057 | D70: 0.3 | E70: 0.9057
A71: 2.5 | B71: 0.7024 | D71: 0.4 | E71: 0.7024
A72: 2 | B72: 0.5598 | D72: 0.5 | E72: 0.5598
A73: 1.666666667 | B73: 0.4554 | D73: 0.6 | E73: 0.4554
A74: 1.428571429 | B74: 0.3738 | D74: 0.7 | E74: 0.3738
A75: 1.25 | B75: 0.3106 | D75: 0.8 | E75: 0.3106
A76: 1.111111111 | B76: 0.2602 | D76: 0.9 | E76: 0.2602
A77: 1.01010101 | B77: 0.2231 | D77: 0.99 | E77: 0.2231
A78: 1 | B78: 0.2194 | D78: 1 | E78: 0.2194
A79: 0.9090909091 | B79: 0.186 | D79: 1.1 | E79: 0.186
A80: 0.8333333333 | B80: 0.1584 | D80: 1.2 | E80: 0.1584
A81: 0.7692307692 | B81: 0.1355 | D81: 1.3 | E81: 0.1355
A82: 0.7142857143 | B82: 0.1162 | D82: 1.4 | E82: 0.1162
A83: 0.6666666667 | B83: 0.1 | D83: 1.5 | E83: 0.1
A84: 0.625 | B84: 0.08631 | D84: 1.6 | E84: 0.08631
A85: 0.5882352941 | B85: 0.07465 | D85: 1.7 | E85: 0.07465
A86: 0.5555555556 | B86: 0.06471 | D86: 1.8 | E86: 0.06471
A87: 0.5263157895 | B87: 0.0562 | D87: 1.9 | E87: 0.0562
A88: 0.3333333333 | B88: 0.01305 | D88: 3 | E88: 0.01305
A89: 0.25 | B89: 0.003779 | D89: 4 | E89: 0.003779
A90: 0.2 | B90: 0.001148 | D90: 5 | E90: 0.001148
A91: 0.1666666667 | B91: 0.0003601 | D91: 6 | E91: 0.0003601
A92: 0.1428571429 | B92: 0.0001155 | D92: 7 | E92: 0.0001155
A93: 0.125 | B93: 3.767e-05 | D93: 8 | E93: 3.767e-05
A94: 0.1111111111 | B94: 1.245e-05 | D94: 9 | E94: 1.245e-05
A95: 0.101010101 | B95: 4.637e-06 | D95: 9.9 | E95: 4.637e-06
